bitfinex/quotes_BTCUSD_20220304
["timestamp","ask_amount","ask_price","bid_price","bid_amount"]
[1646409943626,0.0011,40799.0,40789.0,0.06972423]
[1646409943873,0.0011,40799.0,40790.0,0.3]
[1646409944071,0.0011,40799.0,40786.0,0.31209579]
[1646409944272,0.0011,40799.0,40788.0,0.1]
[1646409944472,0.0011,40799.0,40789.0,0.3]
[1646409944673,0.0011,40799.0,40796.0,0.22144034]
[1646409944872,0.0011,40799.0,40796.0,0.05]
[1646409945072,0.0011,40799.0,40792.0,0.06739219]
[1646409945272,0.0011,40799.0,40790.0,0.35]
[1646409945476,0.0021,40823.0,40798.0,0.15]
[1646409945675,0.001,40827.0,40812.0,0.15]
[1646409945876,0.001,40827.0,40812.0,0.18331597]
[1646409946276,1.4,40825.0,40813.0,0.0118]
[1646409946474,1.4,40825.0,40807.0,8.85e-06]
[1646409946475,0.19797937,40817.0,40807.0,8.85e-06]
[1646409946872,0.19797937,40821.0,40807.0,8.85e-06]
[1646409947074,0.15,40825.0,40807.0,8.85e-06]
[1646409947273,0.001,40827.0,40807.0,8.85e-06]
[1646409947274,0.26630625,40818.0,40807.0,8.85e-06]
[1646409947824,0.19797937,40814.0,40807.0,8.85e-06]
[1646409948024,0.26630625,40818.0,40807.0,8.85e-06]
[1646409948025,0.19797937,40809.0,40807.0,8.85e-06]
[1646409948222,0.19797937,40809.0,40793.0,0.3]
[1646409948421,0.19797937,40804.0,40796.0,0.0693934]
[1646409948626,0.25,40808.0,40796.0,0.0693934]
[1646409948822,0.19797937,40805.0,40785.0,0.4571]
[1646409949022,0.3,40804.0,40785.0,0.4571]
[1646409949223,0.2476626,40791.0,40785.0,0.4571]
[1646409949421,0.2476626,40791.0,40782.0,0.29898524]
[1646409949821,0.2476626,40791.0,40774.0,0.01414198]
[1646409950223,0.15,40806.0,40761.0,0.2]
[1646409950224,0.19797937,40780.0,40762.0,0.02466]
[1646409950424,0.24333651,40784.0,40767.0,0.368614]
[1646409950425,0.19297937,40777.0,40767.0,0.368614]
[1646409950622,0.19297937,40777.0,40766.0,0.0452]
[1646409950623,0.24333651,40784.0,40766.0,0.0452]
[1646409950826,0.24333651,40784.0,40766.0,0.0011]
[1646409950827,0.19297937,40768.0,40766.0,0.0011]
[1646409951025,0.0452,40768.0,40766.0,0.0011]
[1646409951282,0.71133288,40767.0,40766.0,0.0011]
[1646409951476,1.21133288,40767.0,40766.0,0.0011]
[1646409951675,0.2,40763.0,40752.0,0.001]
[1646409951975,1.45,40766.0,40735.0,0.49676]
[1646409951976,0.19297937,40749.0,40748.0,0.001]
[1646409952176,0.19297937,40749.0,40731.0,0.004]
[1646409952177,0.19716389,40739.0,40731.0,0.004]
[1646409952382,0.25,40731.0,40727.0,0.001]
[1646409952575,0.5413,40738.0,40727.0,0.001]
[1646409952576,0.19297937,40729.0,40728.0,0.73658]
[1646409952777,0.19297937,40729.0,40683.0,0.001]
[1646409952778,1.48427937,40729.0,40683.0,0.001]
[1646409952976,1.48427937,40729.0,40710.0,0.368614]
[1646409952977,0.19297937,40715.0,40710.0,0.368614]
[1646409953178,0.0413,40724.0,40722.0,0.06902403]
[1646409953375,0.2,40738.0,40722.0,0.06902403]
[1646409953376,0.0413,40727.0,40723.0,0.368614]
[1646409953575,0.0413,40732.0,40724.0,0.001]
[1646409953778,0.249,40732.0,40724.0,0.001]
[1646409953980,0.0413,40733.0,40724.0,0.001]
[1646409954175,0.0413,40733.0,40726.0,0.32800147]
[1646409954376,0.0413,40733.0,40725.0,0.0011]
[1646409954377,0.23378843,40730.0,40725.0,0.0011]
[1646409954577,0.0413,40733.0,40726.0,0.368614]
[1646409954882,0.05,40738.0,40728.0,1.4]
[1646409955135,0.0413,40747.0,40737.0,0.06924659]
[1646409955433,0.0413,40747.0,40738.0,0.3]
[1646409955633,0.0413,40747.0,40729.0,0.59549694]
[1646409955634,0.2593264,40738.0,40729.0,0.59549694]
[1646409955833,0.2593264,40738.0,40733.0,0.1]
[1646409956036,0.2593264,40738.0,40729.0,0.35]
[1646409956037,0.2593264,40738.0,40729.0,0.05]
[1646409956234,0.2593264,40738.0,40727.0,0.15]
[1646409956440,0.0413,40747.0,40734.0,0.06009739]
[1646409956637,0.0413,40747.0,40741.0,0.05417583]
[1646409957436,0.21210279,40746.0,40741.0,0.05417583]
[1646409957636,0.21210279,40746.0,40738.0,0.29029633]
[1646409957637,0.21210279,40746.0,40740.0,0.15834787]
[1646409957836,0.0413,40747.0,40740.0,0.15834787]
[1646409958038,0.0363,40747.0,40740.0,0.20834787]
[1646409958337,0.249,40752.0,40740.0,0.20834787]
[1646409958338,0.249,40752.0,40746.0,0.3114187]
[1646409958541,0.07537,40756.0,40746.0,0.3114187]
[1646409958542,0.07537,40756.0,40748.0,0.368614]
[1646409958778,0.07537,40756.0,40749.0,0.368614]
[1646409958779,0.02537,40756.0,40749.0,0.368614]
[1646409958979,0.299,40765.0,40749.0,0.368614]
[1646409958980,0.23954575,40764.0,40750.0,0.55988261]
[1646409959176,0.05,40765.0,40751.0,0.368614]
[1646409959378,0.299,40765.0,40751.0,0.045]
[1646409959578,0.299,40765.0,40750.0,0.3]
[1646409959775,0.592153,40772.0,40755.0,0.05867003]
[1646409959776,0.249,40767.0,40755.0,0.05867003]
[1646409959979,0.249,40767.0,40753.0,0.32692184]
[1646409960179,0.122753,40772.0,40751.0,0.3]
[1646409960180,0.249,40765.0,40751.0,0.3]
[1646409960381,0.249,40756.0,40745.0,0.1]
[1646409960583,0.23510179,40764.0,40745.0,0.1]
[1646409960584,0.122769,40763.0,40745.0,0.1]
[1646409960777,0.249,40760.0,40746.0,0.3]
[1646409960977,0.249,40756.0,40747.0,0.06496735]
[1646409961182,0.249,40756.0,40749.0,0.31100432]
[1646409961382,0.2499,40766.0,40749.0,0.31100432]
[1646409961383,0.1,40822.0,40788.0,0.25]
[1646409961590,0.1,40822.0,40755.0,0.8]
[1646409961591,5.14576404,40830.0,40789.0,0.05501882]
[1646409961592,0.5,40828.0,40789.0,0.05501882]
[1646409961791,0.5,40828.0,40799.0,0.05]
[1646409961792,0.49833,40828.0,40799.0,0.05]
[1646409961984,3.81488223,40830.0,40814.0,0.15]
[1646409962181,3.81476223,40830.0,40816.0,0.01597261]
[1646409962381,3.81476223,40830.0,40804.0,0.1]
[1646409962382,1.4,40829.0,40804.0,0.1]
[1646409962622,1.4,40829.0,40805.0,0.0413]
[1646409962824,0.19976628,40828.0,40800.0,0.0413]
[1646409963021,0.061317,40822.0,40782.0,0.1]
[1646409963223,0.122682,40813.0,40778.0,0.4574]
[1646409963426,0.061348,40806.0,40784.0,0.1]
[1646409963625,0.06028555,40792.0,40784.0,0.1]
[1646409963819,0.01075387,40804.0,40781.0,0.01]
[1646409963820,1.41075387,40804.0,40781.0,0.01]
[1646409964023,0.061356,40799.0,40781.0,0.01]
[1646409964230,0.3,40762.0,40760.0,0.4574]
[1646409964424,0.22059994,40768.0,40759.0,0.09406]
[1646409964823,0.0413,40767.0,40759.0,0.09406]
[1646409965024,0.20226178,40766.0,40759.0,0.09406]
[1646409965222,0.0413,40767.0,40759.0,0.09414508]
[1646409966570,0.4629,40783.0,40766.0,0.15]
[1646409966775,0.05,40787.0,40760.0,0.20431054]
[1646409966973,0.05,40787.0,40759.0,0.09414508]
[1646409966974,0.36305732,40786.0,40759.0,0.09414508]
[1646409967270,0.0649239,40774.0,40759.0,0.09414508]
[1646409967469,0.0413,40773.0,40759.0,0.09414508]
[1646409967769,0.28845491,40773.0,40759.0,0.35518926]
[1646409967971,0.0413,40773.0,40766.0,0.27597122]
[1646409968771,0.0413,40773.0,40759.0,0.35518926]
[1646409968970,0.05,40787.0,40759.0,0.09414508]
[1646409969174,0.36305732,40786.0,40759.0,0.09414508]
[1646409969376,0.14,40782.0,40759.0,0.09414508]
[1646409969573,0.14,40778.0,40739.0,0.2835122]
[1646409969772,0.061393,40768.0,40731.0,0.16]
[1646409970022,0.061393,40768.0,40732.0,0.23242325]
[1646409970023,0.06517867,40746.0,40732.0,0.23242325]
[1646409970217,0.2499,40761.0,40732.0,0.23242325]
[1646409970218,0.0413,40748.0,40732.0,0.23242325]
[1646409970418,0.0413,40748.0,40734.0,0.15]
[1646409970820,0.0413,40748.0,40744.0,0.23007822]
[1646409971021,0.0413,40748.0,40745.0,0.32175732]
[1646409971221,0.0413,40748.0,40744.0,0.23007822]
[1646409971422,0.0413,40748.0,40745.0,0.369964]
[1646409971621,0.0413,40748.0,40741.0,0.32175732]
[1646409971622,0.0413,40748.0,40746.0,0.369964]
[1646409971819,0.0413,40748.0,40741.0,0.32175732]
[1646409972125,0.0413,40748.0,40740.0,0.15]
[1646409972321,0.24370916,40746.0,40740.0,0.05]
[1646409972823,0.24370916,40746.0,40731.0,0.01]
[1646409972824,0.14,40742.0,40731.0,0.01]
[1646409973020,0.0413,40741.0,40731.0,0.01]
[1646409973421,0.0413,40741.0,40735.0,0.369964]
[1646409973620,0.0413,40741.0,40735.0,0.15]
[1646409973866,0.0413,40741.0,40736.0,0.369964]
[1646409973867,0.03529,40741.0,40736.0,0.369964]
[1646409974062,0.03529,40741.0,40738.0,0.15]
[1646409974264,0.03529,40741.0,40738.0,0.05]
[1646409974667,0.03529,40741.0,40731.0,0.01]
[1646409975065,0.23668477,40741.0,40731.0,0.01]
[1646409975265,0.26378855,40735.0,40731.0,0.01]
[1646409975867,0.0413,40734.0,40731.0,0.01]
[1646409976865,0.0413,40734.0,40732.0,0.369964]
[1646409977067,0.0413,40734.0,40732.0,0.15]
[1646409977267,0.0413,40734.0,40731.0,0.01]
[1646409979316,0.0413,40734.0,40731.0,0.25403333]
[1646409979516,0.0413,40734.0,40733.0,0.15]
[1646409979717,0.0413,40747.0,40733.0,0.25]
[1646409979919,0.0413,40747.0,40733.0,0.3]
[1646409980116,0.25797569,40746.0,40733.0,0.15]
[1646409980318,0.0413,40752.0,40733.0,0.15]
[1646409980516,0.26575834,40748.0,40733.0,0.15]
[1646409980922,0.291209,40759.0,40734.0,0.67338932]
[1646409980923,0.2298,40759.0,40734.0,0.67338932]
[1646409981121,0.2298,40759.0,40742.0,0.15]
[1646409981364,0.9382,40760.0,40742.0,0.15]
[1646409981365,0.9382,40760.0,40745.0,0.2503251]
[1646409981571,0.05,40761.0,40746.0,0.32108082]
[1646409981764,0.06444026,40760.0,40746.0,0.37108082]
[1646409981964,0.27287294,40760.0,40748.0,0.15]
[1646409982163,0.27287294,40760.0,40749.0,0.32108082]
[1646409982363,0.27454486,40758.0,40749.0,0.32108082]
[1646409982569,0.27287294,40760.0,40749.0,0.32108082]
[1646409982765,0.05,40761.0,40749.0,0.32108082]
[1646409982967,0.4927,40771.0,40752.0,0.15]
[1646409983168,0.4927,40771.0,40750.0,0.369964]
[1646409983169,0.4927,40771.0,40755.0,0.15]
[1646409983368,0.0033,40776.0,40756.0,0.47108082]
[1646409983567,0.0022,40776.0,40761.0,0.369964]
[1646409983768,0.0022,40776.0,40763.0,0.15]
[1646409983769,0.27285128,40773.0,40763.0,0.15]
[1646409983968,0.0022,40776.0,40766.0,0.15]
[1646409984169,0.0022,40776.0,40771.0,0.15]
[1646409984367,0.0022,40776.0,40772.0,0.32108082]
[1646409984568,0.24909037,40774.0,40771.0,0.05]
[1646409984766,0.24909037,40774.0,40763.0,0.05]
[1646409985219,0.24909037,40774.0,40760.0,0.1]
[1646409985416,0.24909037,40774.0,40763.0,0.15]
[1646409985617,0.0022,40776.0,40764.0,0.55226195]
[1646409985817,0.0022,40776.0,40764.0,0.32108082]
[1646409986019,0.0022,40776.0,40765.0,0.1]
[1646409986217,0.0022,40776.0,40766.0,0.369964]
[1646409986416,0.0022,40776.0,40767.0,0.32108082]
[1646409986618,0.0022,40776.0,40765.0,0.15]
[1646409986819,0.0022,40776.0,40766.0,0.369964]
[1646409987019,0.0022,40776.0,40765.0,0.15]
[1646409987218,0.0022,40776.0,40763.0,0.2]
[1646409987419,0.23534564,40771.0,40764.0,0.31972374]
[1646409987622,0.07474986,40776.0,40771.0,0.30081368]
[1646409987823,0.0022,40776.0,40771.0,0.30081368]
[1646409988420,0.26232175,40775.0,40771.0,0.30081368]
[1646409988623,1.4,40774.0,40759.0,0.3204767]
[1646409988869,1.4,40774.0,40750.0,0.3204767]
[1646409988870,0.0612207,40760.0,40750.0,0.3204767]
[1646409989073,0.0612207,40760.0,40748.0,0.15]
[1646409989368,0.05,40768.0,40748.0,0.4704767]
[1646409989569,0.05,40768.0,40748.0,0.57974758]
[1646409989769,0.2499,40767.0,40745.0,0.3204767]
[1646409989970,0.2499,40767.0,40738.0,0.3204767]
[1646409989971,0.28531102,40750.0,40738.0,0.3204767]
[1646409990372,0.06784462,40749.0,40738.0,0.3204767]
[1646409990579,0.1813,40748.0,40732.0,0.32187894]
[1646409990772,0.1813,40748.0,40731.0,0.01]
[1646409990773,0.26525412,40739.0,40731.0,0.01]
[1646409990973,0.30655412,40739.0,40731.0,0.01]
[1646409991271,0.42067058,40738.0,40731.0,0.01]
[1646409991471,0.42067058,40738.0,40725.0,0.0021]
[1646409991472,0.06179447,40730.0,40725.0,0.0021]
[1646409991873,0.0413,40729.0,40725.0,0.0021]
[1646409992072,0.0413,40729.0,40712.0,0.0011]
[1646409992073,0.25413839,40729.0,40712.0,0.0011]
[1646409992274,0.3277267,40720.0,40712.0,0.0011]
[1646409992523,0.14,40718.0,40717.0,7.608e-05]
[1646409992819,0.14,40718.0,40712.0,0.00010608]
[1646409992820,1.4,40717.0,40712.0,0.00010608]
[1646409993028,1.4413,40716.0,40700.0,0.03924]
[1646409993219,0.32067058,40715.0,40700.0,0.03924]
[1646409993421,0.0413,40714.0,40700.0,0.03924]
[1646409993619,0.1413,40714.0,40700.0,0.03924]
[1646409993820,0.1913,40714.0,40700.0,0.03924]
[1646409994219,0.0913,40714.0,40700.0,0.03924]
[1646409994419,0.0913,40714.0,40706.0,0.24429567]
[1646409994420,0.0413,40714.0,40706.0,0.24429567]
[1646409994621,0.0413,40714.0,40709.0,0.15]
[1646409994820,0.2499,40716.0,40709.0,0.15]
[1646409995119,0.3277267,40720.0,40712.0,0.31753656]
[1646409995120,0.00613987,40713.0,40712.0,0.31753656]
[1646409995723,0.00613987,40713.0,40712.0,0.77363732]
[1646409995923,0.05,40724.0,40714.0,0.01227974]
[1646409996265,0.0413,40732.0,40714.0,0.01227974]
[1646409996266,0.07040404,40730.0,40714.0,0.01227974]
[1646409996664,0.28332074,40722.0,40714.0,0.01227974]
[1646409997065,0.27529152,40716.0,40714.0,0.01227974]
[1646409997266,0.59779216,40716.0,40714.0,0.01227974]
[1646409997466,0.32250064,40715.0,40714.0,0.01227974]
[1646409997667,0.061468,40712.0,40706.0,0.001]
[1646409997869,0.14,40708.0,40706.0,0.001]
[1646409998071,0.14,40707.0,40706.0,0.001]
[1646409998967,0.46250064,40707.0,40706.0,0.001]
[1646409999170,0.46250064,40707.0,40698.0,0.001]
[1646409999171,0.50380064,40707.0,40698.0,0.001]
[1646409999367,0.061477,40705.0,40698.0,0.001]
[1646409999567,0.06620052,40701.0,40698.0,0.001]
[1646410000015,0.25737813,40701.0,40698.0,0.001]
[1646410000617,0.53483159,40701.0,40698.0,0.001]
[1646410000819,0.53483159,40701.0,40690.0,0.0011]
[1646410000820,0.36380064,40700.0,40690.0,0.0011]
[1646410001016,0.25590568,40699.0,40690.0,0.0011]
[1646410001216,0.30590568,40699.0,40690.0,0.0011]
[1646410001414,0.0413,40698.0,40690.0,0.0011]
[1646410001614,0.1413,40698.0,40691.0,0.28725773]
[1646410001817,0.0413,40698.0,40691.0,0.28725773]
[1646410002016,0.0413,40698.0,40690.0,0.0011]
[1646410002420,0.0413,40698.0,40691.0,0.20459496]
[1646410002615,0.0413,40698.0,40690.0,0.0011]
[1646410003017,0.0413,40698.0,40693.0,0.25705799]
[1646410003222,0.0413,40698.0,40695.0,0.15]
[1646410003419,0.05,40704.0,40695.0,0.15]
[1646410003769,0.0413,40708.0,40691.0,0.15]
[1646410004167,0.0413,40708.0,40690.0,0.0511]
[1646410004367,0.32250064,40707.0,40690.0,0.0011]
[1646410004569,0.31243432,40699.0,40690.0,0.0011]
[1646410004968,0.20091936,40699.0,40690.0,0.0011]
[1646410005368,0.36380064,40707.0,40690.0,0.0011]
[1646410005369,0.42250064,40706.0,40690.0,0.0011]
[1646410005574,0.7472,40704.0,40690.0,0.0011]
[1646410005774,0.0413,40705.0,40690.0,0.45860064]
[1646410005972,0.0413,40705.0,40701.0,0.25111126]
[1646410006273,0.0413,40705.0,40695.0,0.1361]
[1646410006470,0.2406958,40711.0,40696.0,0.32250064]
[1646410006669,0.2406958,40711.0,40701.0,0.1361]
[1646410006870,0.2406958,40711.0,40702.0,0.32250064]
[1646410007072,0.50695805,40711.0,40704.0,0.25659373]
[1646410007268,0.50695805,40711.0,40702.0,0.32250064]
[1646410007518,0.16952697,40711.0,40702.0,0.32250064]
[1646410007720,0.16952697,40711.0,40701.0,0.1361]
[1646410007916,0.05,40715.0,40702.0,0.32103082]
[1646410008121,0.2468,40723.0,40707.0,0.1361]
[1646410008122,3.25701486,40720.0,40707.0,0.1361]
[1646410008329,3.25701486,40720.0,40708.0,0.32103082]
[1646410008520,0.25632153,40709.0,40702.0,0.22345782]
[1646410008818,0.2499,40718.0,40701.0,0.1361]
[1646410009021,0.25549864,40705.0,40702.0,0.32103082]
[1646410009221,0.25549864,40705.0,40701.0,0.1361]
[1646410009418,0.1,40719.0,40698.0,0.1361]
[1646410009419,0.05,40716.0,40698.0,0.1361]
[1646410009719,0.23854234,40709.0,40702.0,0.21627348]
[1646410009919,0.05,40716.0,40698.0,0.1361]
[1646410010118,0.15,40716.0,40702.0,0.006]
[1646410010321,0.1,40716.0,40702.0,0.006]
[1646410010518,0.27436347,40704.0,40702.0,0.006]
[1646410010719,0.05775545,40712.0,40702.0,0.006]
[1646410010924,0.2311451,40709.0,40702.0,0.006]
[1646410011119,0.1,40716.0,40702.0,0.006]
[1646410011392,0.05,40716.0,40702.0,0.006]
[1646410011594,0.32629109,40707.0,40702.0,0.006]
[1646410011990,0.25702031,40710.0,40702.0,0.006]
[1646410012192,0.47352791,40710.0,40702.0,0.006]
[1646410012389,0.25702031,40710.0,40702.0,0.006]
[1646410012592,0.25702031,40710.0,40702.0,0.1421]
[1646410012791,0.25702031,40710.0,40702.0,0.006]
[1646410013092,0.23302439,40704.0,40702.0,0.006]
[1646410013393,0.21524388,40703.0,40702.0,0.006]
[1646410013595,1.1,40702.0,40685.0,0.1361]
[1646410013791,0.1,40701.0,40685.0,0.1361]
[1646410014193,0.23712691,40694.0,40687.0,0.21225142]
[1646410014392,0.37103082,40702.0,40688.0,0.27124872]
[1646410014591,0.1,40701.0,40688.0,0.27124872]
[1646410014791,0.1,40701.0,40688.0,0.40734872]
[1646410015023,0.25654388,40703.0,40688.0,0.40734872]
[1646410015423,0.2531599,40700.0,40688.0,0.40734872]
[1646410016022,0.25654388,40703.0,40688.0,0.40734872]
[1646410016425,0.25654388,40703.0,40688.0,0.27124872]
[1646410016624,0.25654388,40703.0,40691.0,0.1361]
[1646410016625,0.28041381,40703.0,40691.0,0.1361]
[1646410016824,0.26045528,40696.0,40686.0,0.1371]
[1646410017026,0.26045528,40696.0,40686.0,0.001]
[1646410017027,0.77174,40695.0,40686.0,0.001]
[1646410017425,0.26045528,40696.0,40686.0,0.001]
[1646410017624,0.0413,40700.0,40696.0,0.27663404]
[1646410017826,0.7472,40697.0,40696.0,0.27663404]
[1646410018025,0.7885,40697.0,40696.0,0.27663404]
[1646410018225,0.8385,40697.0,40696.0,0.27663404]
[1646410018424,0.0913,40697.0,40696.0,0.27663404]
[1646410018626,0.29086966,40697.0,40696.0,0.27663404]
[1646410018872,0.49325795,40697.0,40696.0,0.27663404]
[1646410019068,1.25712462,40697.0,40696.0,0.27663404]
[1646410019273,1.25712462,40697.0,40696.0,0.59866176]
[1646410019274,0.00796667,40697.0,40696.0,0.59866176]
[1646410019674,0.4944,40725.0,40696.0,0.59866176]
[1646410019675,0.1,40731.0,40699.0,0.369964]
[1646410019875,0.1,40731.0,40713.0,0.25]
[1646410020072,0.1,40731.0,40714.0,0.32202772]
[1646410020271,0.4884,40733.0,40706.0,0.30709569]
[1646410020272,0.3282406,40714.0,40706.0,0.30709569]
[1646410020473,0.78451707,40730.0,40706.0,0.30709569]
[1646410020474,0.46248935,40730.0,40706.0,0.30709569]
[1646410020671,0.02454,40729.0,40707.0,0.32202772]
[1646410020871,0.02454,40729.0,40708.0,0.1361]
[1646410021072,0.77174,40718.0,40708.0,0.1361]
[1646410021273,0.77174,40718.0,40706.0,0.30709569]
[1646410021274,0.05386004,40710.0,40706.0,0.42461402]
[1646410021482,0.05386004,40710.0,40702.0,0.32202772]
[1646410021673,0.05386004,40710.0,40702.0,0.1361]
[1646410022072,0.80106004,40710.0,40700.0,0.1361]
[1646410022272,0.20420972,40708.0,40700.0,0.1361]
[1646410022527,0.05,40708.0,40700.0,0.1361]
[1646410022726,0.16532804,40710.0,40700.0,0.1361]
[1646410023128,0.16532804,40710.0,40699.0,0.0239]
[1646410023129,0.85106004,40710.0,40699.0,0.0239]
[1646410023332,0.7472,40708.0,40699.0,0.0239]
[1646410023526,0.68087315,40700.0,40699.0,0.0239]
[1646410023727,0.29748196,40707.0,40699.0,0.0239]
[1646410023728,0.0413,40707.0,40699.0,0.0239]
[1646410024128,0.0413,40707.0,40699.0,0.0001]
[1646410024727,0.26014294,40702.0,40699.0,0.0001]
[1646410025026,0.290027,40701.0,40699.0,0.0001]
[1646410025226,0.390027,40701.0,40699.0,0.0001]
[1646410025426,0.33390232,40701.0,40699.0,0.0001]
[1646410025626,0.26941312,40701.0,40699.0,0.0001]
[1646410026027,1.01661312,40701.0,40699.0,0.0001]
[1646410026266,0.1,40701.0,40699.0,0.0001]
[1646410026472,0.28773512,40701.0,40699.0,0.0001]
[1646410026672,0.7472,40700.0,40699.0,0.0001]
[1646410026868,0.7972,40700.0,40699.0,0.0001]
[1646410027066,0.8972,40700.0,40699.0,0.0001]
[1646410027267,1.31839135,40700.0,40699.0,0.0001]
[1646410027468,0.7972,40700.0,40699.0,0.0001]
[1646410027670,0.0413,40710.0,40699.0,0.0001]
[1646410027870,0.7472,40712.0,40699.0,0.0001]
[1646410028068,0.24108254,40707.0,40701.0,0.22137096]
[1646410028270,0.24108254,40707.0,40699.0,0.31555414]
[1646410028471,0.18310072,40706.0,40699.0,0.0001]
[1646410028669,0.24108254,40707.0,40699.0,0.0001]
[1646410028670,0.07356035,40704.0,40699.0,0.0001]
[1646410029069,0.05,40704.0,40699.0,0.0001]
[1646410029271,0.111472,40707.0,40699.0,0.0001]
[1646410029669,0.061472,40707.0,40699.0,0.0001]
[1646410029868,0.29743601,40702.0,40699.0,0.0001]
[1646410030313,0.122949,40709.0,40699.0,0.26810404]
[1646410030515,0.02454,40712.0,40699.0,0.40420404]
[1646410030714,0.24907024,40711.0,40700.0,0.31545414]
[1646410030914,0.24907024,40711.0,40699.0,0.26810404]
[1646410030915,0.05,40711.0,40699.0,0.26810404]
[1646410031115,0.061465,40711.0,40699.0,0.26810404]
[1646410031314,0.22017944,40706.0,40699.0,0.26810404]
[1646410031514,0.22017944,40706.0,40699.0,0.0001]
[1646410031919,0.06894323,40705.0,40699.0,0.0001]
[1646410032817,0.26081425,40704.0,40699.0,0.0001]
[1646410033017,0.14,40700.0,40699.0,0.0001]
[1646410033216,0.1813,40700.0,40699.0,0.0001]
[1646410033418,0.2313,40700.0,40699.0,0.0001]
[1646410033617,0.54625053,40700.0,40699.0,0.0001]
[1646410033880,0.64625053,40700.0,40699.0,0.0001]
[1646410034488,0.70773653,40700.0,40699.0,0.0001]
[1646410035181,0.70773653,40700.0,40686.0,0.001]
[1646410035182,0.02454,40698.0,40686.0,0.001]
[1646410035385,0.14124029,40697.0,40686.0,0.001]
[1646410035782,0.0905244,40696.0,40686.0,0.001]
[1646410035982,0.32270262,40690.0,40686.0,0.001]
[1646410036181,0.35815512,40689.0,40686.0,0.001]
[1646410036383,0.64338322,40689.0,40686.0,0.001]
[1646410037183,0.07017677,40688.0,40686.0,0.001]
[1646410037620,0.12017677,40688.0,40686.0,0.001]
[1646410037821,0.05,40688.0,40686.0,0.001]
[1646410038221,0.4880301,40689.0,40686.0,0.001]
[1646410038222,0.152802,40689.0,40686.0,0.001]
[1646410039022,0.05450935,40687.0,40686.0,0.001]
[1646410039321,0.43095701,40688.0,40686.0,0.001]
[1646410039723,0.1,40687.0,40686.0,0.001]
[1646410040123,0.15,40687.0,40686.0,0.001]
[1646410040722,0.27368879,40688.0,40686.0,0.001]
[1646410040723,0.32368879,40688.0,40686.0,0.001]
[1646410041123,0.22870335,40687.0,40686.0,0.001]
[1646410041376,0.32368879,40688.0,40686.0,0.001]
[1646410041576,0.05,40688.0,40686.0,0.001]
[1646410041775,0.061502,40689.0,40686.0,0.001]
[1646410042578,0.27949533,40688.0,40686.0,0.001]
[1646410042892,0.7885,40687.0,40686.0,0.001]
[1646410043077,0.05,40700.0,40683.0,0.001]
[1646410043377,0.1413,40686.0,40683.0,0.001]
[1646410043576,0.14,40684.0,40683.0,0.001]
[1646410044481,0.14,40684.0,40665.0,0.001]
[1646410044482,0.02454,40682.0,40658.0,0.001]
[1646410044677,1.4,40683.0,40658.0,0.001]
[1646410044678,0.07464022,40676.0,40658.0,0.001]
[1646410044880,0.7472,40667.0,40658.0,0.001]
[1646410045139,0.7472,40665.0,40658.0,0.001]
[1646410045341,0.05,40661.0,40658.0,0.001]
[1646410045537,0.0913,40661.0,40658.0,0.001]
[1646410045838,0.30658432,40661.0,40658.0,0.001]
[1646410046136,0.25658432,40661.0,40658.0,0.001]
[1646410046337,0.35658432,40661.0,40658.0,0.001]
[1646410046537,0.25658432,40661.0,40658.0,0.001]
[1646410047139,0.35658432,40661.0,40660.0,0.00108528]
[1646410047343,0.54658432,40661.0,40660.0,0.00108528]
[1646410047542,0.58468432,40661.0,40660.0,0.00108528]
[1646410047739,1.33188432,40661.0,40660.0,0.00108528]
[1646410047938,1.29238931,40661.0,40660.0,0.00108528]
[1646410048139,0.50708931,40661.0,40660.0,0.00108528]
[1646410048340,1.56496963,40661.0,40660.0,0.00108528]
[1646410048540,1.56496963,40661.0,40656.0,0.001]
[1646410048541,0.7472,40657.0,40656.0,0.001]
[1646410048776,1.19918032,40657.0,40656.0,0.001]
[1646410048981,1.37229632,40657.0,40627.0,0.65716]
[1646410049179,1.37229632,40657.0,40644.0,0.002]
[1646410049180,0.7853,40655.0,40644.0,0.002]
[1646410049379,0.7853,40655.0,40631.0,0.01]
[1646410049380,0.14,40651.0,40631.0,0.01]
[1646410049580,0.7472,40644.0,40631.0,0.01]
[1646410049778,0.8872,40640.0,40631.0,0.01]
[1646410049980,0.8872,40636.0,40631.0,0.01]
[1646410050184,1.35,40633.0,40622.0,0.001]
[1646410050381,0.30793236,40630.0,40622.0,0.001]
[1646410050580,0.35198032,40629.0,40622.0,0.001]
[1646410050783,0.13319573,40625.0,40622.0,0.001]
[1646410050981,0.13319573,40623.0,40622.0,0.001]
[1646410051183,0.32449573,40623.0,40622.0,0.001]
[1646410051583,0.0413,40623.0,40622.0,0.001]
[1646410051784,0.0413,40623.0,40622.0,0.151]
[1646410051983,0.0413,40623.0,40622.0,0.401]
[1646410051984,0.14188056,40623.0,40622.0,0.401]
[1646410052183,0.04923,40624.0,40622.0,0.151]
[1646410052626,0.13319573,40623.0,40622.0,0.151]
[1646410052829,0.04923,40624.0,40622.0,0.151]
[1646410053224,0.04923,40624.0,40622.0,0.45266922]
[1646410053428,0.04923,40624.0,40622.0,0.90266922]
[1646410053828,0.04923,40624.0,40622.0,1.18236091]
[1646410054026,0.04923,40624.0,40622.0,1.12849743]
[1646410054233,0.04923,40624.0,40622.0,1.10349743]
[1646410054827,0.04923,40624.0,40622.0,1.07849743]
[1646410055227,0.04923,40624.0,40622.0,1.10303743]
[1646410055433,0.0413,40630.0,40623.0,0.31115472]
[1646410055633,0.0413,40630.0,40629.0,0.15]
[1646410055828,0.25445576,40641.0,40629.0,0.15]